Cogmind - Beta 12 @@@ ROGUE MODE // 2023.09.14 @ 13:43:34 Player: monistgf Result: Destroyed by Y-54 Guardian with Flak Gun Performance ------------- Evolutions (4) 2000 Regions Visited (8) 1600 Robots Destroyed (117) 585 Value Destroyed (4183) 4183 Prototype IDs (8) 160 Alien Tech Used (0) 0 Bonus (18) 18 TOTAL SCORE: 8546 Bonus ------- High Alert Combat Kills 13 Follower Combat Kills 37 Friendly Fire -32 Cogmind --------- Core Integrity 0/850 Matter 247/300 Energy 97/100 System Corruption 32% Temperature Cool (7) Movement Treading (240) Ox1 Location -6/Factory Parts ------- > --- POWER (1) -------- (None) > --- PROPULSION (5) --- Medium Treads Carbon-fiber Leg > --- UTILITY (6) ------ Large Storage Unit Advanced Visual Processing Unit Core Analyzer Core Analyzer Microactuators Improved Utility Shielding > --- WEAPON (3) ------- Great Maul Power Maul > --- INVENTORY (15) --- Long-range Tractor Beam Peak State ------------ > --- POWER ------------ Cooled Deuterium Engine > --- PROPULSION ------- Improved Medium Treads Improved Medium Treads Improved Medium Treads Gravmag System Cooled Cesium-ion Thruster > --- UTILITY ---------- Advanced Heat Sink Large Storage Unit Improved Salvage Targeting Computer Improved Target Analyzer Centrium Light Armor Plating > --- WEAPON ----------- Enhanced Autogun Gauss Rifle > --- INVENTORY -------- Long-range Tractor Beam Power Maul [Rating: 62] Favorites ----------- Power Light Nuclear Core Engine Improved Deuterium Engine Power Core Light Nuclear Core Propulsion Advanced Treads Treads Advanced Treads Leg Aluminum Leg Wheel Compact Wheel Hover Unit Cooled Aerolev Unit Flight Unit Cooled Cesium-ion Thruster Utility Advanced Visual Processing Unit Device Improved Terrain Scanner Storage High-capacity Storage Unit Processor Advanced Visual Processing Unit Protection Improved Medium Armor Plating Weapon Heavy Assault Rifle Ballistic Gun Heavy Assault Rifle Ballistic Cannon Gauss Cannon Launcher Improved Grenade Launcher Impact Weapon Power Maul Slashing Weapon Chainsword Build | -11 -10 -9 -8 -7 -7 -6 -6 -6 ------- Run | Jun Mat Mat Mat Fac Sto Fac Was Fac Slots Evolved 8 | . . 2 2 2 . 2 . . Power . | . . . . . . . . . Propulsion 3 | . . . 1 1 . 1 . . Utility 4 | . . 1 1 1 . 1 . . Weapon 1 | . . 1 . . . . . . Parts Attached 203 | 5 12 16 15 34 73 4 3 41 Power 20 | 1 1 1 1 3 7 1 . 5 Engine 12 | 1 1 . . 3 3 . . 4 Core 8 | . . 1 1 . 4 1 . 1 Reactor . | . . . . . . . . . Propulsion 57 | 2 4 4 4 5 19 1 1 17 Treads 32 | . 2 4 4 5 10 . 1 6 Leg 21 | 2 2 . . . 7 1 . 9 Wheel 1 | . . . . . 1 . . . Hover 2 | . . . . . 1 . . 1 Flight 1 | . . . . . . . . 1 Utility 65 | . 5 5 4 12 26 1 1 11 Device 28 | . . 2 1 5 16 1 . 3 Storage 11 | . 4 1 1 . 3 . . 2 Processor 8 | . . . . 3 . . . 5 Hackware . | . . . . . . . . . Protection 18 | . 1 2 2 4 7 . 1 1 Artifact . | . . . . . . . . . Weapon 61 | 2 2 6 6 14 21 1 1 8 Energy Gun . | . . . . . . . . . Energy Cannon . | . . . . . . . . . Ballistic Gun 37 | 2 1 5 5 7 11 1 . 5 Ballistic Cannon 10 | . 1 1 . 2 6 . . . Launcher 3 | . . . 1 1 . . 1 . Special Weapon . | . . . . . . . . . Impact Weapon 8 | . . . . 1 4 . . 3 Slashing Weapon 3 | . . . . 3 . . . . Piercing Weapon . | . . . . . . . . . Special Melee Weapon . | . . . . . . . . . Unidentified Prototypes 8 | . . 1 . . 4 . 1 2 Corrupted Parts 2 | . . . . . . . . 2 System Corruption 15 | . . . . . . . . 15 Parts Lost 57 | . 2 2 . 1 24 . 9 19 Power 7 | . . . . . 5 . . 2 Propulsion 24 | . 1 . . . 10 . 2 11 Utility 10 | . . 1 . . 4 . 3 2 Weapon 16 | . 1 1 . 1 5 . 4 4 Highest Loss Streak 11 | . 1 1 . 1 6 . 7 11 To Critical Strikes 1 | . . . . . 1 . . . Average Slot Usage (%) 89 | . 81 98 96 99 94 100 37 50 Engine 3 | . 14 . . 4 2 . . 1 Core 3 | . . 10 9 2 3 6 1 . Treads 19 | . 15 22 27 29 17 . . 8 Leg 4 | . 10 . . . 3 33 8 6 Device 8 | . . 5 10 15 6 13 6 4 Storage 7 | . 11 11 9 7 7 6 1 2 Processor 9 | . . . . 10 15 13 9 9 Protection 5 | . 1 15 13 4 6 6 2 3 Ballistic Gun 15 | . 22 24 26 19 11 13 3 3 Ballistic Cannon 4 | . 5 8 . 2 8 6 1 . Impact Weapon 1 | . . . . . 2 . . 3 Naked Turns 61 | . . . . . . . 41 20 Heaviest Build 77 | 8 31 38 62 77 77 67 67 42 Greatest Support 90 | 20 40 46 66 86 86 55 55 90 Greatest Overweight (x) 19 | . 1 . . . 19 1 1 1 Average Overweight (x) . | . . . . . 1 1 . . Largest Inventory Capacity 20 | 5 20 15 20 20 20 20 20 15 Average Capacity 17 | 5 11 15 16 20 20 20 9 8 Most Carried 20 | 3 15 15 20 20 20 20 20 5 Average Carried 15 | 1 8 14 15 19 19 18 9 3 Final Capacity 20 | 5 15 15 20 20 20 20 5 15 Final Carried 20 | 3 15 15 20 20 20 20 5 1 Class Distribution -------------------- 34% | Skirmisher 24% | Mutant 18% | Tank 7% | Assassin 6% | Scavenger-Skirmisher Dominant Class ---------------- Mutant | -10/Materials Tank | -9/Materials Tank | -8/Materials Skirmisher | -7/Factory Tank | -7/Storage Scavenger-Skirmisher | -6/Factory Scout | -6/Waste Mutant | -6/Factory Resources | -11 -10 -9 -8 -7 -7 -6 -6 -6 ----------- Run | Jun Mat Mat Mat Fac Sto Fac Was Fac Matter Collected 5575 | 204 305 349 217 666 2987 . 6 841 Remotely . | . . . . . . . . . Salvage Created 4817 | . 466 436 338 501 1936 . 288 852 Parts 225 | . 22 40 32 30 69 . 5 27 Haulers Intercepted 13 | . 2 2 1 1 6 . . 1 Recyclers Shooed 12 | . 1 . . 3 3 . . 5 Parts Field Recycled 8 | . . . . 8 . . . . Retrieved Matter 58 | . . . . 58 . . . . Parts Self-Destructed . | . . . . . . . . . Prevented . | . . . . . . . . . Kills | -11 -10 -9 -8 -7 -7 -6 -6 -6 ------- Run | Jun Mat Mat Mat Fac Sto Fac Was Fac Combat Hostiles Destroyed 90 | . 9 10 10 12 38 . 1 10 Melee 3 | . . . . . 2 . . 1 Guns 58 | . 9 7 7 8 19 . . 8 Cannons 19 | . . 3 . . 16 . . . AOE 8 | . . . 3 4 . . 1 . Classes Destroyed 13 | . 4 3 . 2 3 . 1 . Worker 4 | . . . . . 3 . . 1 Builder 2 | . . 1 . . . . . 1 Hauler 13 | . 2 2 1 1 6 . . 1 Recycler 5 | . 1 . . . 3 . . 1 Watcher 3 | . . . . 1 2 . . . Swarmer 17 | . 3 4 6 4 . . . . Grunt 38 | . 6 1 . 3 20 . . 8 Brawler 2 | . . . . . 2 . . . Duelist 6 | . . 1 . . 4 . . 1 Sentry 19 | . . 4 4 1 9 . . 1 Hunter 1 | . . . . . 1 . . . Programmer 6 | . . . . 4 2 . . . Compactor 1 | . . . . . . . 1 . Best Kill Streak 8 | . 3 5 3 5 8 . 1 4 Combat Bots Only 7 | . 3 4 3 5 7 . 1 3 Max Kills in Single Turn 3 | . 1 2 3 3 2 . 1 1 Gunslinging 1 | . . 1 1 . . . . . Exploded 3 | . . . 3 3 . . 1 . Melee 1 | . . . . . 1 . . 1 Uniques/NPCs Destroyed . | . . . . . . . . . Combat | -11 -10 -9 -8 -7 -7 -6 -6 -6 -------- Run | Jun Mat Mat Mat Fac Sto Fac Was Fac Damage Taken 10785 | . 528 596 371 826 4845 . 359 3260 Core 1585 | . 83 75 35 15 525 . 132 720 Absorbed by Shields . | . . . . . . . . . Redirected to Shielding 44 | . . 15 . . . . . 29 Regen/Repaired (Parts) 86 | . . . . . 86 . . . Core Remaining (%) 72 | 100 66 81 93 . 22 . . . Volleys Fired 330 | . 42 27 16 23 163 . 5 54 Largest 3 | . 2 3 3 3 3 . 3 2 Hottest 136 | . 55 90 69 96 136 . 103 53 Shots Fired 813 | . 84 79 45 68 436 . 14 87 Gun 575 | . 75 54 44 55 251 . 9 87 Cannon 235 | . 9 25 . 12 185 . 4 . Launcher 3 | . . . 1 1 . . 1 . Special . | . . . . . . . . . Kinetic 810 | . 84 79 44 67 436 . 13 87 Thermal . | . . . . . . . . . Explosive 3 | . . . 1 1 . . 1 . Electromagnetic . | . . . . . . . . . Robot Hit Streak 16 | . 13 12 16 16 13 . 6 15 Robot Miss Streak 6 | . 4 2 2 2 6 . 2 3 Penetration Max 1 | . . . . . . . 1 1 Secondary Targets 3 | . 1 1 1 . . . . . Max Gunslinging Chain 1 | . 1 1 1 . . . . . Shots Hit Robots 590 | . 55 56 32 45 310 . 9 83 Core Hits 282 | . 22 22 15 27 157 . 3 36 Critical Kills 6 | . . 1 . . 1 . . 4 Critical Parts Destroyed 11 | . . 1 1 . 5 . . 4 Critical Strikes 26 | . 1 3 1 . 13 . . 8 Destroy 11 | . . 2 1 . 1 . . 7 Blast 9 | . 1 1 . . 7 . . . Smash 6 | . . . . . 5 . . 1 Melee Attacks 32 | . . . . 7 13 . . 12 Impact 26 | . . . . 1 13 . . 12 Slashing 6 | . . . . 6 . . . . Piercing . | . . . . . . . . . Sneak Attacks 5 | . . . . 1 2 . . 2 Combat Hostiles . | . . . . . . . . . Follow-up Attacks . | . . . . . . . . . Damage Inflicted 13831 | . 671 840 704 1456 7345 . 695 2120 Guns 7422 | . 570 534 497 643 3499 . 152 1527 Cannons 4010 | . 87 301 . 174 3335 . 113 . Explosions 1166 | . . . 203 533 . . 430 . Melee 1125 | . . . . 76 460 . . 589 Ramming 108 | . 14 5 4 30 51 . . 4 Kinetic 11432 | . 657 835 497 817 6834 . 265 1527 Thermal 50 | . . . . 50 . . . . Explosive 1116 | . . . 203 483 . . 430 . Electromagnetic . | . . . . . . . . . Impact 1049 | . . . . . 460 . . 589 Slashing 76 | . . . . 76 . . . . Piercing . | . . . . . . . . . Highest Corruption 32 | . . . 2 3 9 . 17 32 Average Corruption 6 | . . . 2 2 5 . 11 19 Corruption Purged . | . . . . . . . . . Corruption Blocked . | . . . . . . . . . Effects 155 | . . . 7 30 74 . 5 39 Message Errors 39 | . . . . 7 21 . 3 8 Matter Fused 31 | . . . 1 4 18 . 1 7 Heat Flow Errors 18 | . . . 2 5 8 . 1 2 Energy Discharges 22 | . . . . 5 10 . . 7 Parts Rejected 5 | . . . . 1 1 . . 3 Parts Fused 1 | . . . . . . . . 1 Data Loss (minor) 16 | . . . . 6 6 . . 4 Data Loss (major) 5 | . . . 2 1 2 . . . Misfires 4 | . . . . 1 3 . . . Alerts 1 | . . . 1 . . . . . Misdirections 4 | . . . . . . . . 4 Weapon Failures 9 | . . . 1 . 5 . . 3 Overload Shots . | . . . . . . . . . Overflow Damage 508 | . . . . 25 257 . 26 200 Projectiles 1 | . . . . . 1 . . . Explosions 51 | . . . . 25 . . 26 . Melee 456 | . . . . . 256 . . 200 Knockbacks 46 | . 3 3 . 3 36 . . 1 Impact 3 | . . . . . 2 . . 1 Kinetic 35 | . 2 3 . 3 27 . . . Secondary 8 | . 1 . . . 7 . . . Self-Inflicted Damage 167 | . . . . 104 . . 63 . Shots 2 | . . . . 1 . . 1 . Rammed 16 | . 2 2 1 4 5 . . 2 Targets Rammed 20 | . 3 2 1 4 7 . . 3 Kicked 3 | . 1 . . . 1 . . 1 Crushed 1 | . . . . . 1 . . . Highest Temperature 340 | . 36 201 163 225 340 . 239 112 Average Temperature 79 | . 13 68 50 90 90 . 90 28 Received Heat Transfer 3597 | . 228 180 90 162 1803 . . 1134 Effects 3 | . . . . . 3 . . . Shutdowns 1 | . . . . . 1 . . . Energy Bleed 1 | . . . . . 1 . . . Interference 1 | . . . . . 1 . . . Siege Activations . | . . . . . . . . . Robots Corrupted . | . . . . . . . . . Combat Hostiles . | . . . . . . . . . Parts Fried 6 | . . . . . 2 . . 4 Impact Corruptions 12 | . . . . . 8 . . 4 Robots Melted . | . . . . . . . . . Combat Hostiles . | . . . . . . . . . Parts Melted . | . . . . . . . . . Heat Transferred 50 | . . . . 50 . . . . Parts Sabotaged . | . . . . . . . . . Parts Stolen . | . . . . . . . . . Parts Stripped . | . . . . . . . . . Power Chain Reactions . | . . . . . . . . . Missiles Intercepted . | . . . . . . . . . Alert | -11 -10 -9 -8 -7 -7 -6 -6 -6 ------- Run | Jun Mat Mat Mat Fac Sto Fac Was Fac Peak Influence 443 | . 186 363 300 327 443 180 63 167 Initial 180 | . . 51 68 95 79 180 63 . Average 124 | . 97 173 168 53 210 180 22 51 Maximum Alert Level 2 | . . 1 1 1 2 . . . Low Security (%) 81 | 100 100 72 58 93 61 100 100 100 Level 1 18 | . . 27 42 6 36 . . . Level 2 . | . . . . . 1 . . . Level 3 . | . . . . . . . . . Level 4 . | . . . . . . . . . Level 5 . | . . . . . . . . . High Security . | . . . . . . . . . Max Security . | . . . . . . . . . Squads Dispatched 22 | . 2 1 1 5 10 1 . 2 Investigation 1 | . . . . . . . . 1 Extermination 7 | . . . . 4 2 1 . . Reinforcement 9 | . 2 1 1 1 4 . . . Assault 3 | . . . . . 3 . . . Garrison 2 | . . . . . 1 . . 1 Intercept . | . . . . . . . . . Searches Triggered . | . . . . . . . . . Construction Impeded 1 | . . . . . 1 . . . Haulers Reinforced 1 | . . . . . 1 . . . Active Scanning Responses . | . . . . . . . . . Cargo Convoy Interrupts . | . . . . . . . . . Stealth | -11 -10 -9 -8 -7 -7 -6 -6 -6 --------- Run | Jun Mat Mat Mat Fac Sto Fac Was Fac Distress Signals 8 | . 1 1 2 . 4 . . . Communications Jammed . | . . . . . . . . . Distress Signals . | . . . . . . . . . Times Spotted 149 | . 17 13 19 16 58 . 8 18 Peak Tracking Total 9 | . 4 5 6 5 9 1 5 6 Tactical Retreats 10 | . . . . . 2 . 2 6 Traps | -11 -10 -9 -8 -7 -7 -6 -6 -6 ------- Run | Jun Mat Mat Mat Fac Sto Fac Was Fac Traps Triggered 5 | . . . 2 1 1 1 . . Indirectly . | . . . . . . . . . Trap Hack Attempts . | . . . . . . . . . Triggered . | . . . . . . . . . Disarmed . | . . . . . . . . . Reprogrammed . | . . . . . . . . . Reused . | . . . . . . . . . Traps Extracted . | . . . . . . . . . Installed . | . . . . . . . . . Triggered . | . . . . . . . . . Machines | -11 -10 -9 -8 -7 -7 -6 -6 -6 ---------- Run | Jun Mat Mat Mat Fac Sto Fac Was Fac Machines Disabled 22 | . 2 . 1 14 5 . . . Max in Single Turn 13 | . 1 . 1 13 1 . . . Garrison Access 1 | . . . . . 1 . . . Machines Repaired . | . . . . . . . . . Machines Sabotaged . | . . . . . . . . . Overloaded Fab Kills . | . . . . . . . . . Hacking | -11 -10 -9 -8 -7 -7 -6 -6 -6 --------- Run | Jun Mat Mat Mat Fac Sto Fac Was Fac Machines Accessed 23 | . 2 1 2 5 7 1 . 5 Terminals 19 | . 2 1 2 5 5 1 . 3 Fabricators . | . . . . . . . . . Repair Stations 2 | . . . . . 1 . . 1 Recycling Units 1 | . . . . . 1 . . . Scanalyzers . | . . . . . . . . . Garrison Access 1 | . . . . . . . . 1 Total Hacks 60 | . 8 2 6 14 20 1 . 9 Successful 19 | . 3 1 3 2 9 . . 1 Failed 40 | . 4 1 3 12 11 1 . 8 Catastrophic 11 | . . . . 5 2 1 . 3 Database Lockouts 1 | . 1 . . . . . . . Manual 31 | . 8 2 4 7 8 1 . 1 Terminals 51 | . 8 2 6 14 14 1 . 6 Fabricators . | . . . . . . . . . Repair Stations 3 | . . . . . 2 . . 1 Recycling Units 4 | . . . . . 4 . . . Scanalyzers . | . . . . . . . . . Garrison Access 2 | . . . . . . . . 2 Terminal Hacks 12 | . 2 . 2 2 5 . . 1 Robot Analysis 1 | . 1 . . . . . . . Open Door 3 | . . . . . 3 . . . Branch Access Points 3 | . 1 . 1 . 1 . . . Alert Level 3 | . . . 1 1 . . . 1 Unreport Threat 2 | . . . . 1 1 . . . Fabricator Hacks . | . . . . . . . . . Repair Station Hacks 2 | . . . . . 2 . . . Scan Component 1 | . . . . . 1 . . . Repair 1 | . . . . . 1 . . . Recycling Unit Hacks 2 | . . . . . 2 . . . Report Inventory 1 | . . . . . 1 . . . Retrieve Components 1 | . . . . . 1 . . . Scanalyzer . | . . . . . . . . . Garrison Access Hacks . | . . . . . . . . . Unauthorized Hacks 3 | . 1 1 1 . . . . . Terminals 3 | . 1 1 1 . . . . . Botnet 3 | . 1 1 1 . . . . . Fabricators . | . . . . . . . . . Repair Stations . | . . . . . . . . . Recycling Units . | . . . . . . . . . Scanalyzers . | . . . . . . . . . Garrison Access . | . . . . . . . . . Data Cores Recovered . | . . . . . . . . . Used . | . . . . . . . . . Hacking Detections 20 | . 2 1 2 5 4 1 . 5 Full Trace Events 1 | . . . . . . . . 1 Feedback Events . | . . . . . . . . . Feedback Blocked . | . . . . . . . . . Robot Schematics Acquired . | . . . . . . . . . Robots Built . | . . . . . . . . . Authchips . | . . . . . . . . . Time . | . . . . . . . . . Total Robot Build Rating . | . . . . . . . . . Part Schematics Acquired . | . . . . . . . . . Parts Built . | . . . . . . . . . Authchips . | . . . . . . . . . Time . | . . . . . . . . . Total Part Build Rating . | . . . . . . . . . Parts Repaired 1 | . . . . . 1 . . . Time 38 | . . . . . 38 . . . Parts Recycled . | . . . . . . . . . Recycled Matter . | . . . . . . . . . Retrieved Matter . | . . . . . . . . . Retrieved Components 8 | . . . . . 8 . . . Parts Scanalyzed . | . . . . . . . . . Part Schematics Acquired . | . . . . . . . . . Parts Damaged . | . . . . . . . . . Bothacking | -11 -10 -9 -8 -7 -7 -6 -6 -6 ------------ Run | Jun Mat Mat Mat Fac Sto Fac Was Fac Used RIF Installer . | . . . . . . . . . Robots Hacked . | . . . . . . . . . Non-combat . | . . . . . . . . . Combat . | . . . . . . . . . Robot Hacks Applied . | . . . . . . . . . Relay Couplers Released 2 | . . . . . 2 . . . Machine Destruction 2 | . . . . . 2 . . . Fabnet Peak Effective % . | . . . . . . . . . Robots Rewired . | . . . . . . . . . Allies Hacked . | . . . . . . . . . Hacks Repelled . | . . . . . . . . . Allies | -11 -10 -9 -8 -7 -7 -6 -6 -6 -------- Run | Jun Mat Mat Mat Fac Sto Fac Was Fac Total Allies 2 | . . . . . 2 . . . Largest Group 2 | . . . . . 2 . . . Highest-Rated Group 62 | . . . . . 62 . . . Highest-Rated Ally 31 | . . . . . 31 . . . Total Orders . | . . . . . . . . . Ally Attacks 12 | . . . . . 12 . . . Total Damage 149 | . . . . . 149 . . . Kills 1 | . . . . . 1 . . . Allies Corrupted . | . . . . . . . . . Allies Melted . | . . . . . . . . . Intel | -11 -10 -9 -8 -7 -7 -6 -6 -6 ------- Run | Jun Mat Mat Mat Fac Sto Fac Was Fac Robot Analysis Total 1 | . 1 . . . . . . . Derelict Logs Recovered . | . . . . . . . . . Drone Launches . | . . . . . . . . . Drone Recoveries . | . . . . . . . . . Exploration | -11 -10 -9 -8 -7 -7 -6 -6 -6 ------------- Run | Jun Mat Mat Mat Fac Sto Fac Was Fac Turns Passed 7601 | 78 683 498 500 2236 2360 255 174 817 Spaces Moved 3659 | 51 313 204 255 996 846 131 218 645 Core 246 | 4 . . . . 1 . 197 44 Treads 2235 | . 198 204 255 996 497 . . 85 Legs 500 | 47 115 . . . 90 131 21 96 Wheels 251 | . . . . . 251 . . . Hover 7 | . . . . . 7 . . . Flight 420 | . . . . . . . . 420 Fastest Speed 35 | 50 120 160 153 145 120 190 50 35 Average Speed 143 | 114 151 160 157 150 180 190 63 86 Slowest Speed 1000 | 120 190 160 163 151 1000 190 190 240 Overloaded Moves . | . . . . . . . . . Propulsion Burnouts . | . . . . . . . . . Robots Hopped 3 | . . . . . . . . 3 Cave-ins Triggered . | . . . . . . . . . Exploration Rate (%) 39 | 4 54 24 36 33 87 5 97 16 Regions Visited 8 Branch Regions 1 Pre-discovered Areas . | . . . . . . . . . Known Exits Taken 2 | . . . . 1 1 . . . Unknown Exits Taken 4 | 1 1 1 1 . . . . . Scrap Searched . | . . . . . . . . . Spaces Dug 6 | . . . . 6 . . . . Terrain Destroyed 114 | . . . 8 48 42 . 16 . Melee 6 | . . . . 6 . . . . Projectile 41 | . . . . 2 39 . . . AOE 67 | . . . 8 40 3 . 16 . Terrain Rammed . | . . . . . . . . . Walls Destroyed . | . . . . . . . . . Machines Disabled . | . . . . . . . . . Actions | -11 -10 -9 -8 -7 -7 -6 -6 -6 --------- Run | Jun Mat Mat Mat Fac Sto Fac Was Fac Total 5353 | 68 443 324 321 1675 1349 139 243 791 Wait 918 | 10 47 51 19 572 186 . 16 17 Move 3646 | 50 312 203 254 995 845 131 217 639 Hop 3 | . . . . . . . . 3 Pick Up 95 | 3 18 7 7 17 31 2 1 9 Fast Attach 74 | 5 4 5 1 4 20 . 1 34 Attach 42 | . 2 4 1 6 18 2 2 7 Detach 11 | . 1 3 . 2 2 . . 3 Swap 87 | . 6 7 13 24 35 2 . . Drop 94 | . 8 15 9 21 29 2 1 9 Fire 330 | . 42 27 16 23 163 . 5 54 Melee 32 | . . . . 7 13 . . 12 Ram 1 | . . . . . . . . 1 Kick 3 | . 1 . . . 1 . . 1 Crush 17 | . 2 2 1 4 6 . . 2 Escape Stasis . | . . . . . . . . . Rewire . | . . . . . . . . . Trap . | . . . . . . . . . Miscellaneous . | . . . . . . . . . Route ------- -11/Junkyard -10/Materials (discovered 2 exits: *Mat / *Min) -9/Materials -8/Materials (discovered 2 exits: *Fac x2) -7/Factory (discovered 4 exits: *Fac / *Sto / *Low x2) -7/Storage (discovered 2 exits: *Fac / Rec) -6/Factory -6/Waste -6/Factory (discovered 2 exits: [*Fac] / [*Low]) History --------- Turn | Location | Event 25 | -11/Junkyard | Discovered new exit (range 15) 79 | -11/Junkyard | Entered Materials 332 | -10/Materials | Build established: Mutant 459 | -10/Materials | Central database locked down 459 | -10/Materials | Identified exit to Mines 579 | -10/Materials | Discovered new exit (range 3) 762 | -10/Materials | Entered another Materials area 762 | -9/Materials | Evolved 2 slots: Utility x1, Weapon x1 1231 | -9/Materials | Discovered new exit (range 16) 1260 | -9/Materials | Entered another Materials area 1260 | -8/Materials | Evolved 2 slots: Propulsion x1, Utility x1 1337 | -8/Materials | Discovered new exit (range 13) 1380 | -8/Materials | Build established: Tank 1748 | -8/Materials | Discovered new exit (range 9) 1760 | -8/Materials | Entered Factory 1760 | -7/Factory | Evolved 2 slots: Propulsion x1, Utility x1 2056 | -7/Factory | Build established: Skirmisher 2233 | -7/Factory | Discovered new exit (range 8) 2361 | -7/Factory | Identified exit to Lower Caves 2917 | -7/Factory | Discovered new exit (range 4) 3522 | -7/Factory | Discovered exit to Lower Caves (range 4) 3975 | -7/Factory | Discovered new exit (range 11) 3990 | -7/Factory | Identified exit to Storage 3996 | -7/Factory | Entered Storage 4150 | -7/Storage | Garrison activated, responded to threat 4203 | -7/Storage | Destroyed 7 combat bots 4270 | -7/Storage | Found Powered Armor 4276 | -7/Storage | Found Powered Armor 4522 | -7/Storage | Lost 4 parts (2n2w) 4779 | -7/Storage | Identified exit to Recycling 4904 | -7/Storage | Lost 3 parts (1p1n1w) 5107 | -7/Storage | Repaired Adv. Treads 5933 | -7/Storage | Discovered new exit (range 14) 6017 | -7/Storage | Met a pair of Derelict thieves 6086 | -7/Storage | Core integrity fell below 50% 6148 | -7/Storage | Lost 6 parts (1p3n2u) 6354 | -7/Storage | Identified exit to Factory 6356 | -7/Storage | Entered Factory 6356 | -6/Factory | Evolved 2 slots: Propulsion x1, Utility x1 6531 | -6/Factory | Build established: Scavenger-Skirmisher 6611 | -6/Factory | Sucked down chute 6611 | -6/Factory | Entered Waste 6626 | -6/Waste | EMP discharged 6626 | -6/Waste | Spotted C-40 Crusher 6630 | -6/Waste | Spotted C-40 Crusher 6640 | -6/Waste | Spotted C-40 Crusher 6654 | -6/Waste | Crushed by Compactor (1 part destroyed, 1 dropped) 6655 | -6/Waste | Spotted C-40 Crusher 6655 | -6/Waste | Spotted C-40 Crusher 6665 | -6/Waste | Crushed by Compactor (1 part destroyed, 1 dropped) 6666 | -6/Waste | Crushed by Compactor (1 part destroyed, 2 dropped) 6666 | -6/Waste | Destroyed C-40 Crusher 6668 | -6/Waste | Crushed by Compactor (1 part destroyed, 2 dropped) 6669 | -6/Waste | Crushed by Compactor (1 part destroyed, 1 dropped) 6681 | -6/Waste | Spotted C-40 Crusher 6700 | -6/Waste | Lost 7 parts (2n1u4w) 6726 | -6/Waste | EMP discharged 6726 | -6/Waste | System corruption reached 10% 6733 | -6/Waste | Crushed by Compactor (1 part destroyed, 1 dropped) 6735 | -6/Waste | Crushed by Compactor (1 part destroyed) 6773 | -6/Waste | Discovered new exit (range 13) 6785 | -6/Waste | Entered Factory 7040 | -6/Factory | Build established: Mutant 7144 | -6/Factory | Garrison activated, responded to threat 7188 | -6/Factory | Lost 3 parts (2n1u) 7255 | -6/Factory | Core integrity fell below 50% 7259 | -6/Factory | Released all parts (4) 7268 | -6/Factory | Discovered new exit (range 5) 7284 | -6/Factory | Lost 11 parts (2p5n1u3w) 7307 | -6/Factory | Discovered new exit (range 11) 7392 | -6/Factory | Core integrity fell below 20% 7487 | -6/Factory | System corruption reached 30% 7602 | -6/Factory | Destroyed by Y-54 Guardian with Flak Gun Last Messages --------------- 07468_ Unknown Device fried. 07471_ Acquired Corrupted Med. Treads. 07471_ Integrated Corrupted Med. Treads (+10). 07472_ Acquired 70 matter. 07475_ Acquired 9 matter. 07480_ Acquired Core Analyzer. 07486_ Acquired Corrupted Med. Treads. 07486_ Integrated Corrupted Med. Treads (+5). 07486_ Complication: Energy sink damages Corrupted Med. Treads (-21). 07494_ System corrupted: Matter fused (-9). 07526_ System corrupted: Energy discharge (-17). 07543_ System corrupted: Matter fused (-8). 07558_ System corrupted: Component data lost. 07571_ Imp. Carbon-fiber Leg destroyed. 07573_ GKME8NXXVOZ#2< 7N 0M BT